Workbook

Sheet Mittelhilfstabelle
A2: Stunde | B2: Luftfeuchtigkeit | C2: Luftdruck | D2: Taupunkttemperatur | E2: Bewölkung | G2: Stunde | H2: Luftfeuchtigkeit | I2: Luftdruck | J2: Taupunkttemperatur | K2: Bewölkung
A3: 00 | B3: 82 | C3: 1009.8 | D3: -1.9 | E3: 0 | G3: 00 | H3: 82 | I3: 1002.2 | J3: 1.9 | K3: 5
A4: 01 | B4: 84 | C4: 1010 | D4: -1.9 | E4: 0 | G4: 01 | H4: 83 | I4: 1001.4 | J4: 1.9 | K4: 6
A5: 02 | B5: 79 | C5: 1010.2 | D5: -2.1 | E5: 1 | G5: 02 | H5: 83 | I5: 1000.1 | J5: 2.5 | K5: 7
A6: 03 | B6: 81 | C6: 1010.2 | D6: -2.5 | E6: 1 | G6: 03 | H6: 85 | I6: 999.8 | J6: 2.6 | K6: 8
A7: 04 | B7: 83 | C7: 1010.4 | D7: -2.9 | E7: 1 | G7: 04 | H7: 86 | I7: 999.1 | J7: 3.5 | K7: 8
A8: 05 | B8: 84 | C8: 1010.1 | D8: -2.7 | E8: 1 | G8: 05 | H8: 86 | I8: 998.4 | J8: 3.5 | K8: 8
A9: 06 | B9: 86 | C9: 1010 | D9: -3.2 | E9: 5 | G9: 06 | H9: 85 | I9: 997.8 | J9: 3.1 | K9: 8
A10: 07 | B10: 85 | C10: 1010.4 | D10: -2.3 | E10: 6 | G10: 07 | H10: 86 | I10: 997.8 | J10: 3.1 | K10: 7
A11: 08 | B11: 86 | C11: 1010.5 | D11: -1.2 | E11: 7 | G11: 08 | H11: 83 | I11: 997.7 | J11: 3.1 | K11: 8
A12: 09 | B12: 79 | C12: 1010.3 | D12: 0.6 | E12: 7 | G12: 09 | H12: 83 | I12: 997.6 | J12: 3.7 | K12: 8
A13: 10 | B13: 67 | C13: 1009.9 | D13: 2.5 | E13: 6 | G13: 10 | H13: 81 | I13: 997.1 | J13: 4.6 | K13: 8
A14: 11 | B14: 54 | C14: 1009.1 | D14: 2.3 | E14: 7 | G14: 11 | H14: 80 | I14: 997 | J14: 5 | K14: 8
A15: 12 | B15: 51 | C15: 1008.4 | D15: 2.6 | E15: 6 | G15: 12 | H15: 82 | I15: 996.6 | J15: 6.3 | K15: 8
A16: 13 | B16: 48 | C16: 1007.6 | D16: 2.2 | E16: 6 | G16: 13 | H16: 80 | I16: 997.4 | J16: 5 | K16: 8
A17: 14 | B17: 45 | C17: 1006.7 | D17: 1 | E17: 6 | G17: 14 | H17: 87 | I17: 997.5 | J17: 5.3 | K17: 8
A18: 15 | B18: 44 | C18: 1005.6 | D18: 1.2 | E18: 5 | G18: 15 | H18: 92 | I18: 997.6 | J18: 5.3 | K18: 8
A19: 16 | B19: 43 | C19: 1004.8 | D19: 0.6 | E19: 5 | G19: 16 | H19: 91 | I19: 997.6 | J19: 5 | K19: 8
A20: 17 | B20: 46 | C20: 1004.3 | D20: 0.6 | E20: 6 | G20: 17 | H20: 84 | I20: 997.6 | J20: 3.8 | K20: 8
A21: 18 | B21: 51 | C21: 1004.2 | D21: 0.6 | E21: 5 | G21: 18 | H21: 82 | I21: 997.9 | J21: 3.2 | K21: 8
A22: 19 | B22: 59 | C22: 1004 | D22: 0.3 | E22: 4 | G22: 19 | H22: 84 | I22: 997.8 | J22: 2.7 | K22: 8
A23: 20 | B23: 64 | C23: 1003.7 | D23: 0.3 | E23: 4 | G23: 20 | H23: 84 | I23: 998.5 | J23: 2.6 | K23: 8
A24: 21 | B24: 71 | C24: 1003.3 | D24: 1.1 | E24: 1 | G24: 21 | H24: 85 | I24: 998.5 | J24: 2.1 | K24: 8
A25: 22 | B25: 75 | C25: 1003.1 | D25: 0.9 | E25: 1 | G25: 22 | H25: 87 | I25: 998.8 | J25: 1.4 | K25: 8
A26: 23 | B26: 80 | C26: 1002.9 | D26: 1.3 | E26: 3 | G26: 23 | H26: 88 | I26: 998.8 | J26: 0.5 | K26: 8
A27: Mittel | B27: =ROUND(AVERAGE(B3:B26),1) -> 67.8 | C27: =ROUND(AVERAGE(C3:C26),1) -> 1007.5 | D27: =AVERAGE(D3:D26) -> -0.1083333333 | E27: =ROUND(AVERAGE(E3:E26),1) -> 3.9 | G27: Mittel | H27: =ROUND(AVERAGE(H3:H26),1) -> 84.5 | I27: =ROUND(AVERAGE(I3:I26),1) -> 998.4 | J27: =AVERAGE(J3:J26) -> 3.404166667 | K27: =ROUND(AVERAGE(K3:K26),1) -> 7.7
D29: 2018-03-30 | J29: 2018-03-31
J30: G 176,3
A32: Stunde | B32: Luftfeuchtigkeit | C32: Luftdruck | D32: Taupunkttemperatur | E32: Bewölkung | G32: Stunde | H32: Luftfeuchtigkeit | I32: Luftdruck | J32: Taupunkttemperatur | K32: Bewölkung
A33: 00 | B33: 78 | C33: 1010.9 | D33: -1.7 | E33: 7 | G33: 00 | H33: 93 | I33: 998.1 | J33: 4.8 | K33: 8
A34: 01 | B34: 78 | C34: 1010.5 | D34: -1.4 | E34: 7 | G34: 01 | H34: 89 | I34: 997.9 | J34: 5.2 | K34: 8
A35: 02 | B35: 78 | C35: 1009.9 | D35: -1.4 | E35: 8 | G35: 02 | H35: 85 | I35: 998.2 | J35: 5.4 | K35: 8
A36: 03 | B36: 79 | C36: 1009.3 | D36: -1.4 | E36: 8 | G36: 03 | H36: 83 | I36: 998.6 | J36: 5.4 | K36: 8
A37: 04 | B37: 79 | C37: 1008.8 | D37: -1.2 | E37: 8 | G37: 04 | H37: 81 | I37: 1000.2 | J37: 3.7 | K37: 8
A38: 05 | B38: 77 | C38: 1008.4 | D38: -1 | E38: 8 | G38: 05 | H38: 77 | I38: 1001.1 | J38: 2.4 | K38: 8
A39: 06 | B39: 80 | C39: 1008.3 | D39: -0.7 | E39: 8 | G39: 06 | H39: 76 | I39: 1002.2 | J39: 2 | K39: 7
A40: 07 | B40: 81 | C40: 1007.9 | D40: -0.3 | E40: 8 | G40: 07 | H40: 71 | I40: 1003.4 | J40: 0.5 | K40: 7
A41: 08 | B41: 80 | C41: 1007.3 | D41: 0.2 | E41: 8 | G41: 08 | H41: 72 | I41: 1004.8 | J41: 0.3 | K41: 6
A42: 09 | B42: 77 | C42: 1006.8 | D42: 1.7 | E42: 8 | G42: 09 | H42: 68 | I42: 1005.3 | J42: -0.2 | K42: 7
A43: 10 | B43: 78 | C43: 1006.2 | D43: 1.6 | E43: 8 | G43: 10 | H43: 69 | I43: 1006.1 | J43: 0.2 | K43: 7
A44: 11 | B44: 76 | C44: 1006 | D44: 1.6 | E44: 8 | G44: 11 | H44: 58 | I44: 1006.3 | J44: -0.8 | K44: 7
A45: 12 | B45: 81 | C45: 1005.4 | D45: 2.8 | E45: 8 | G45: 12 | H45: 54 | I45: 1006.4 | J45: -1.2 | K45: 7
A46: 13 | B46: 76 | C46: 1005 | D46: 3 | E46: 8 | G46: 13 | H46: 50 | I46: 1006.6 | J46: -1 | K46: 7
A47: 14 | B47: 78 | C47: 1004.8 | D47: 3.5 | E47: 8 | G47: 14 | H47: 53 | I47: 1006.8 | J47: -1 | K47: 7
A48: 15 | B48: 76 | C48: 1004.1 | D48: 4.1 | E48: 8 | G48: 15 | H48: 56 | I48: 1006.9 | J48: 0 | K48: 7
A49: 16 | B49: 81 | C49: 1003.6 | D49: 4.3 | E49: 8 | G49: 16 | H49: 54 | I49: 1006.8 | J49: -0.8 | K49: 7
A50: 17 | B50: 84 | C50: 1003 | D50: 4.5 | E50: 8 | G50: 17 | H50: 55 | I50: 1006.8 | J50: -0.6 | K50: 6
A51: 18 | B51: 89 | C51: 1002.5 | D51: 4.7 | E51: 8 | G51: 18 | H51: 57 | I51: 1007.1 | J51: -0.8 | K51: 4
A52: 19 | B52: 90 | C52: 1002 | D52: 4 | E52: 8 | G52: 19 | H52: 60 | I52: 1007.9 | J52: -1.5 | K52: 7
A53: 20 | B53: 86 | C53: 1001.5 | D53: 4.1 | E53: 8 | G53: 20 | H53: 69 | I53: 1008.4 | J53: -1.4 | K53: 4
A54: 21 | B54: 87 | C54: 1000.6 | D54: 4 | E54: 8 | G54: 21 | H54: 67 | I54: 1009.3 | J54: -1.7 | K54: 7
A55: 22 | B55: 89 | C55: 999.8 | D55: 4.7 | E55: 8 | G55: 22 | H55: 73 | I55: 1009.5 | J55: -0.8 | K55: 4
A56: 23 | B56: 91 | C56: 999.3 | D56: 5.1 | E56: 8 | G56: 23 | H56: 79 | I56: 1009.5 | J56: -1.2 | K56: 1
A57: Mittel | B57: =ROUND(AVERAGE(B33:B56),1) -> 81.2 | C57: =ROUND(AVERAGE(C33:C56),1) -> 1005.5 | D57: =ROUND(AVERAGE(D33:D56),1) -> 1.9 | E57: =ROUND(AVERAGE(E33:E56),1) -> 7.9 | G57: Mittel | H57: =ROUND(AVERAGE(H33:H56),1) -> 68.7 | I57: =ROUND(AVERAGE(I33:I56),1) -> 1004.8 | J57: =ROUND(AVERAGE(J33:J56),1) -> 0.7 | K57: =ROUND(AVERAGE(K33:K56),1) -> 6.5
D59: 2018-03-28 | J59: 2018-03-29

Sheet Kurztabelle
A2: Wetterwarte: Köttewitz | L2: Monat: | M2: März | R2: Jahr: | U2: 2018
A4: Dat. | B4: TTT | C4: TxTx | D4: TnTn | E4: Tg | F4: Umin. | G4: UU | H4: NN | I4: RRRR | J4: Art | L4: sss | M4: PPPP | N4: eee | O4: fff | R4: Tage mit | V4: fk | W4: Summe
J5: * | O5: Km/h | P5: SS | Q5: Art ( D ) | R5: RR | S5: Ge | T5: Bf6 | U5: Bf8 | V5: Km/h | W5: Gewitter
A6: 01. | B6: -8.7 | C6: -2.1 | D6: -14.2 | E6: -16.1 | F6: 40 | G6: 65 | H6: 0.8 | I6: . | L6: 6.7 | M6: 1017.8 | N6: -14.4 | O6: 7 | P6: 0 | V6: 31 | AA6: max >=30,0°C | AB6: max >=25,0°C | AC6: max <0,0°C | AE6: RR >=0,1 mm | AF6: RR >=1,0 mm | AG6: RR >=3,0 mm | AH6: RR >=10,0 mm | AI6: RR >=20,0 mm | AS6: Hellmann
A7: 02. | B7: -6.9 | C7: -1.3 | D7: -12.8 | E7: -14.4 | F7: 50 | G7: 65 | H7: 4.2 | I7: 0 | J7: T | L7: 1.5 | M7: 1005.5 | N7: -12.6 | O7: 7 | P7: 0 | V7: 27 | AA7: =COUNTIF(C6:C15,">=30") -> 0 | AB7: =COUNTIF(C6:C15,">=25") -> 0 | AC7: =COUNTIF(C6:C15,"<0") -> 3 | AE7: =COUNTIF(I6:I15,">=0,1") -> 3 | AF7: =COUNTIF(I6:I15,">=1") -> 2 | AG7: =COUNTIF(I6:I15,">=3") -> 1 | AH7: =COUNTIF(I6:I15,">=10") -> 0 | AI7: =COUNTIF(I6:I15,">=20") -> 0 | AS7: 200 cm3
A8: 03. | B8: -7.2 | C8: -1.2 | D8: -12.4 | E8: -13.9 | F8: 45 | G8: 63 | H8: 2.9 | I8: . | L8: 1.4 | M8: 1004.8 | N8: -13.2 | O8: 3 | P8: 0 | V8: 23 | AA8: =COUNTIF(C18:C27,">=30") -> 0 | AB8: =COUNTIF(C18:C27,">=25") -> 0 | AC8: =COUNTIF(C18:C27,"<0") -> 3 | AE8: =COUNTIF(I18:I27,">=0,1") -> 7 | AF8: =COUNTIF(I18:I27,">=1") -> 4 | AG8: =COUNTIF(I18:I27,">=3") -> 2 | AH8: =COUNTIF(I18:I27,">=10") -> 1 | AI8: =COUNTIF(I18:I27,">=20") -> 0 | AS8: 11.4
A9: 04. | B9: -2.4 | C9: 4.4 | D9: -10.2 | E9: -12.8 | F9: 35 | G9: 56 | H9: 3.5 | I9: . | L9: 3.7 | M9: 1005 | N9: -10.4 | O9: 9 | P9: 0 | V9: 31 | AA9: =COUNTIF(C30:C40,">=30") -> 0 | AB9: =COUNTIF(C30:C40,">=25") -> 0 | AC9: =COUNTIF(C30:C40,"<0") -> 0 | AE9: =COUNTIF(I30:I40,">=0,1") -> 4 | AF9: =COUNTIF(I30:I40,">=1") -> 2 | AG9: =COUNTIF(I30:I40,">=3") -> 0 | AH9: =COUNTIF(I30:I40,">=10") -> 0 | AI9: =COUNTIF(I30:I40,">=20") -> 0
A10: 05. | B10: 0.3 | C10: 3.9 | D10: -2 | E10: -3.9 | F10: 62 | G10: 72 | H10: 6.7 | I10: . | L10: . | M10: 1000.9 | N10: -4.2 | O10: 11 | P10: 0 | V10: 34
A11: 06. | B11: 0.5 | C11: 3 | D11: -1.9 | E11: -3.9 | F11: 75 | G11: 87 | H11: 7.4 | I11: 6.6 | J11: Tl | L11: . | M11: 994.2 | N11: -1.5 | O11: 4 | P11: 0 | R11: 1 | V11: 26 | AA11: min <0,0°C | AB11: min <0-10,0°C | AE11: rel.Lf. 14h >=70% | AG11: rel.Lf. 14h <=40%
A12: 07. | B12: 2.8 | C12: 7.1 | D12: -0.9 | E12: -2.2 | F12: 75 | G12: 87 | H12: 7.3 | I12: 1.3 | J12: Tl | L12: 0.2 | M12: 995 | N12: 0.7 | O12: 5 | P12: 3 | Q12: T | R12: 1 | V12: 34 | AA12: =COUNTIF(D6:D15,"<0") -> 7 | AB12: =COUNTIF(D6:D15,"<=-10") -> 4 | AE12: =COUNTIF(F6:F15,">=70") -> 2 | AG12: =COUNTIF(F6:F15,"<=40") -> 2
A13: 08. | B13: 6.4 | C13: 10.1 | D13: 3 | E13: -1.7 | F13: 46 | G13: 65 | H13: 5.6 | I13: 0 | J13: l | L13: 2.7 | M13: 1003.5 | N13: 0 | O13: 12 | P13: 0 | T13: 1 | V13: 44 | AA13: =COUNTIF(D18:D27,"<0") -> 6 | AB13: =COUNTIF(D18:D27,"<=-10") -> 1 | AE13: =COUNTIF(F18:F27,">=70") -> 4 | AG13: =COUNTIF(F18:F27,"<=40") -> 1
A14: 09. | B14: 5.6 | C14: 9.9 | D14: 2.9 | E14: 0 | F14: 41 | G14: 63 | H14: 3.6 | I14: 0.8 | J14: l | L14: 7 | M14: 1008 | N14: 1 | O14: 10 | P14: 0 | R14: 1 | T14: 1 | V14: 44 | AA14: =COUNTIF(D30:D40,"<0") -> 6 | AB14: =COUNTIF(D30:D40,"<=-10") -> 0 | AE14: =COUNTIF(F30:F40,">=70") -> 3 | AG14: =COUNTIF(F30:F40,"<=40") -> 0
A15: 10. | B15: 8 | C15: 14.9 | D15: 1.9 | E15: 0 | F15: 62 | G15: 79 | H15: 7.6 | I15: 0 | J15: l | L15: 1.1 | M15: 1006.5 | N15: 4.4 | O15: 6 | P15: 0 | V15: 27
A16: Su | B16: =SUM(B6:B15) -> -1.6 | C16: =SUM(C6:C15) -> 48.7 | D16: =SUM(D6:D15) -> -46.6 | E16: =SUM(E6:E15) -> -68.9 | F16: XXX | G16: XXX | H16: XXX | I16: =SUM(I6:I15) -> 8.7 | J16: XX | L16: =SUM(L6:L15) -> 24.3 | M16: XXX | N16: XXX | O16: XXX | P16: XXX | Q16: X | R16: =SUM(R6:R15) -> 3 | S16: =SUM(S6:S15) -> 0 | T16: =SUM(T6:T15) -> 2 | U16: =SUM(U6:U15) -> 0 | V16: XXX | AA16: ohne Sonne | AB16: Son. 0,1-0,9 | AC16: Son. >=10,0 | AE16: Sch. >=1 cm | AF16: Sch. >=3 cm | AG16: Sch. >=10 cm
A17: Mi | B17: =AVERAGE(B6:B15) -> -0.16 | C17: =AVERAGE(C6:C15) -> 4.87 | D17: -4.66 | E17: -6.89 | F17: 53.1 | G17: 70.2 | H17: 4.96 | I17: XXX | J17: XX | L17: XXX | M17: =AVERAGE(M6:M15) -> 1004.12 | N17: =AVERAGE(N6:N15) -> -5.02 | O17: =AVERAGE(O6:O15) -> 7.4 | P17: =AVERAGE(P6:P15) -> 0.3 | Q17: X | R17: XX | S17: XX | T17: XX | U17: XX | V17: =AVERAGE(V6:V15) -> 32.1 | AA17: =COUNTIF(L6:L15,".") -> 2 | AB17: =COUNTIF(L6:L15,"<1") -> 1 | AC17: =COUNTIF(L6:L15,">=10") -> 0 | AE17: =COUNTIF(P6:P15,">=1") -> 1 | AF17: =COUNTIF(P6:P15,">=3") -> 1 | AG17: =COUNTIF(P6:P15,">=10") -> 0
A18: 11. | B18: 10.9 | C18: 17.2 | D18: 6.8 | E18: 3.3 | F18: 52 | G18: 74 | H18: 6.5 | I18: . | L18: 3.4 | M18: 1001 | N18: 6.4 | O18: 6 | P18: 0 | V18: 29 | AA18: =COUNTIF(L18:L27,".") -> 4 | AB18: =COUNTIF(L18:L27,"<1") -> 1 | AC18: =COUNTIF(L18:L27,">=10") -> 0 | AE18: =COUNTIF(P18:P27,">=1") -> 3 | AF18: =COUNTIF(P18:P27,">=3") -> 3 | AG18: =COUNTIF(P18:P27,">=10") -> 0
A19: 12. | B19: 8.4 | C19: 10.1 | D19: 6.2 | E19: 2.8 | F19: 77 | G19: 87 | H19: 7.6 | I19: 11.7 | J19: l | L19: . | M19: 993.3 | N19: 6.4 | O19: 5 | P19: 0 | R19: 1 | V19: 32 | AA19: =COUNTIF(L30:L40,".") -> 4 | AB19: =COUNTIF(L30:L40,"<1") -> 2 | AC19: =COUNTIF(L30:L40,">=10") -> 0 | AE19: =COUNTIF(P30:P40,">=1") -> 1 | AF19: =COUNTIF(P30:P40,">=3") -> 0 | AG19: =COUNTIF(P30:P40,">=10") -> 0
A20: 13. | B20: 9.2 | C20: 12.2 | D20: 6.8 | E20: 3.3 | F20: 57 | G20: 72 | H20: 6.6 | I20: 1.1 | J20: l | L20: 0.2 | M20: 1001 | N20: 4.4 | O20: 11 | P20: 0 | R20: 1 | T20: 1 | V20: 44
A21: 14. | B21: 3.6 | C21: 6.8 | D21: 1.8 | E21: 1.1 | F21: 75 | G21: 85 | H21: 8 | I21: 0.8 | J21: l | L21: . | M21: 1011 | N21: 1.4 | O21: 5 | P21: 0 | R21: 1 | T21: 1 | V21: 39 | AA21: Max TT | AB21: Max TxTx | AC21: Min TgTg | AE21: Max RR
A22: 15. | B22: 4.3 | C22: 10.1 | D22: -1.6 | E22: -3.9 | F22: 51 | G22: 77 | H22: 4.9 | I22: 0.3 | J22: l | L22: 3.5 | M22: 1007.6 | N22: 0.2 | O22: 8 | P22: 0 | R22: 1 | V22: 37 | AA22: =MAX(B6:B15,B18:B27,B30:B40) -> 10.9 | AB22: =MAX(C6:C15,C18:C27,C30:C40) -> 17.2 | AC22: =MIN(E6:E15,E18:E27,E30:E40) -> -16.1 | AE22: =MAX(I6:I15,I18:I27,I30:I40) -> 11.7
A23: 16. | B23: 1.1 | C23: 3.8 | D23: -2.8 | E23: -2.8 | F23: 80 | G23: 89 | H23: 8 | I23: 5.8 | J23: Tl | L23: . | M23: 1004.7 | N23: -0.5 | O23: 7 | P23: 0 | R23: 1 | V23: 25 | AA23: Min TT | AB23: Min TnTn | AC23: Min U14 | AE23: Max SS
A24: 17. | B24: -4.9 | C24: -2.8 | D24: -5.8 | E24: -5.6 | F24: 73 | G24: 81 | H24: 8 | I24: 0.4 | J24: T | L24: . | M24: 1010.5 | N24: -7.6 | O24: 15 | P24: 6 | Q24: T | R24: 1 | T24: 1 | V24: 44 | AA24: =MIN(B6:B15,B18:B27,B30:B40) -> -8.7 | AB24: =MIN(D6:D15,D18:D27,D30:D40) -> -14.2 | AC24: =MIN(F6:F15,F18:F27,F30:F40) -> 35 | AE24: =MAX(P6:P15,P18:P27,P30:P40) -> 6
A25: 18. | B25: -5.3 | C25: -2.7 | D25: -8.1 | E25: -8.3 | F25: 51 | G25: 62 | H25: 7.6 | I25: . | L25: 9 | M25: 1014.2 | N25: -11.5 | O25: 19 | P25: 5 | Q25: D | T25: 1 | V25: 45
A26: 19. | B26: -4.4 | C26: -0.2 | D26: -10.3 | E26: -12.2 | F26: 46 | G26: 59 | H26: 3.7 | I26: . | L26: 8.9 | M26: 1014.3 | N26: -11.4 | O26: 6 | P26: 5 | Q26: D | V26: 29
A27: 20. | B27: -2.4 | C27: 3 | D27: -8.3 | E27: -10.6 | F27: 39 | G27: 69 | H27: 5.3 | I27: 1.4 | J27: T | L27: 3.5 | M27: 1015.8 | N27: -7.7 | O27: 5 | P27: 0 | Q27: F | R27: 1 | V27: 26
A28: Su | B28: =SUM(B18:B27) -> 20.5 | C28: =SUM(C18:C27) -> 57.5 | D28: =SUM(D18:D27) -> -15.3 | E28: =SUM(E18:E27) -> -32.9 | F28: XXX | G28: XXX | H28: XXX | I28: =SUM(I18:I27) -> 21.5 | J28: XX | L28: =SUM(L18:L27) -> 28.5 | M28: XXX | N28: XXX | O28: XXX | P28: XXX | Q28: X | R28: =SUM(R18:R27) -> 7 | S28: =SUM(S18:S27) -> 0 | T28: =SUM(T18:T27) -> 4 | U28: =SUM(U18:U27) -> 0 | V28: XXX
A29: Mi | B29: =AVERAGE(B18:B27) -> 2.05 | C29: =AVERAGE(C18:C27) -> 5.75 | D29: -1.53 | E29: -3.29 | F29: 60.1 | G29: 75.5 | H29: 6.62 | I29: XXX | J29: XX | L29: XXX | M29: =AVERAGE(M18:M27) -> 1007.34 | N29: =AVERAGE(N18:N27) -> -1.99 | O29: =AVERAGE(O18:O27) -> 8.7 | P29: =AVERAGE(P18:P27) -> 1.6 | Q29: X | R29: XX | S29: XX | T29: XX | U29: XX | V29: =AVERAGE(V18:V27) -> 35
A30: 21. | B30: -0.7 | C30: 3.5 | D30: -5.1 | E30: -7.8 | F30: 49 | G30: 71 | H30: 3 | I30: . | L30: 5.3 | M30: 1026.9 | N30: -5.5 | O30: 5 | P30: 2 | Q30: D | V30: 23
A31: 22. | B31: 1.4 | C31: 4 | D31: -2.4 | E31: -4.4 | F31: 50 | G31: 70 | H31: 7.7 | I31: 1.2 | J31: Tl | L31: . | M31: 1016.4 | N31: -3.7 | O31: 8 | P31: 0 | Q31: F | R31: 1 | T31: 1 | V31: 40
A32: 23. | B32: 2.6 | C32: 4.1 | D32: 1.7 | E32: 1.1 | F32: 77 | G32: 86 | H32: 7.8 | I32: . | L32: . | M32: 1008.1 | N32: 0.5 | O32: 3 | P32: 0 | Q32: F | V32: 21
A33: 24. | B33: 3.2 | C33: 8.9 | D33: -2.2 | E33: -5 | F33: 50 | G33: 74 | H33: 5.2 | I33: . | L33: 4.7 | M33: 1006.1 | N33: -1.3 | O33: 2 | P33: 0 | Q33: R | V33: 18
A34: 25. | B34: 2.8 | C34: 8 | D34: -2.3 | E34: -5 | F34: 58 | G34: 74 | H34: 2 | I34: . | L34: 8.3 | M34: 1008.8 | N34: -1.4 | O34: 6 | P34: 0 | Q34: R | V34: 31
A35: 26. | B35: 3.6 | C35: 8.7 | D35: -0.5 | E35: -3.3 | F35: 57 | G35: 80 | H35: 7.5 | I35: 0.1 | J35: l | L35: . | M35: 1013.1 | N35: 0.3 | O35: 2 | P35: 0 | Q35: R | R35: 1 | V35: 24
A36: 27. | B36: 3.7 | C36: 7.8 | D36: 1.3 | E36: 1.7 | F36: 46 | G36: 74 | H36: 6.2 | I36: . | L36: 3.2 | M36: 1014.9 | N36: -0.6 | O36: 3 | P36: 0 | Q36: R | V36: 24
A37: 28. | B37: 4.9 | C37: 8.3 | D37: 1.5 | E37: 0 | F37: 73 | G37: 81 | H37: 7.9 | I37: 1.9 | J37: l | L37: . | M37: 1005.5 | N37: 1.9 | O37: 6 | P37: 0 | Q37: R | R37: 1 | T37: 1 | V37: 39
A38: 29. | B38: 6.2 | C38: 9.5 | D38: 4.8 | E38: 3.9 | F38: 48 | G38: 69 | H38: 6.5 | I38: . | L38: 0.3 | M38: 1004.8 | N38: 0.7 | O38: 9 | P38: 0 | Q38: R | T38: 1 | V38: 44
A39: 30. | B39: 5.9 | C39: 13.2 | D39: -1.2 | E39: -3.9 | F39: 42 | G39: 68 | H39: 3.9 | I39: 0 | J39: l | L39: 8.2 | M39: 1007.5 | N39: -0.1 | O39: 5 | P39: 0 | Q39: R | V39: 32
A40: 31. | B40: 5.8 | C40: 9.9 | D40: 2.3 | E40: 2.2 | F40: 76 | G40: 84 | H40: 7.7 | I40: 0.9 | J40: l | L40: 0.1 | M40: 998.4 | N40: 3.4 | O40: 4 | P40: 0 | Q40: R | R40: 1 | V40: 34
A41: Su | B41: =SUM(B30:B40) -> 39.4 | C41: =SUM(C30:C40) -> 85.9 | D41: =SUM(D30:D40) -> -2.1 | E41: =SUM(E30:E40) -> -20.5 | F41: XXX | G41: XXX | H41: XXX | I41: =SUM(I30:I40) -> 4.1 | J41: XX | L41: =SUM(L30:L40) -> 30.1 | M41: XXX | N41: XXX | O41: XXX | P41: XXX | Q41: X | R41: =SUM(R30:R40) -> 4 | S41: =SUM(S30:S40) -> 0 | T41: =SUM(T30:T40) -> 3 | U41: =SUM(U30:U40) -> 0 | V41: XXX
A42: Mi | B42: =AVERAGE(B30:B40) -> 3.581818182 | C42: 7.809090909 | D42: -0.1909090909 | E42: -1.863636364 | F42: 56.90909091 | G42: 75.54545455 | H42: 5.945454545 | I42: XXX | J42: XX | L42: XXX | M42: =AVERAGE(M30:M40) -> 1010.045455 | N42: =AVERAGE(N30:N40) -> -0.5272727273 | O42: =AVERAGE(O30:O40) -> 4.818181818 | P42: =AVERAGE(P30:P40) -> 0.1818181818 | Q42: X | R42: XX | S42: XX | T42: XX | U42: XX | V42: =AVERAGE(V30:V40) -> 30
A43: MSu | B43: =SUM(B16+B28+B41) -> 58.3 | C43: =SUM(C16+C28+C41) -> 192.1 | D43: =SUM(D16+D28+D41) -> -64 | E43: =SUM(E16+E28+E41) -> -122.3 | F43: XXX | G43: XXX | H43: XXX | I43: =SUM(I16+I28+I41) -> 34.3 | J43: XX | L43: =SUM(L16+L28+L41) -> 82.9 | M43: XXX | N43: XXX | O43: XXX | P43: XXX | Q43: X | R43: =SUM(R16+R28+R41) -> 14 | S43: =SUM(S16+S28+S41) -> 0 | T43: =SUM(T16+T28+T41) -> 9 | U43: =SUM(U16+U28+U41) -> 0 | V43: XXX
A44: MMi | B44: =AVERAGE(B6:B15,B18:B27,B30:B40) -> 1.880645161 | C44: 6.196774194 | D44: -2.064516129 | E44: -3.94516129 | F44: 56.70967742 | G44: 73.80645161 | H44: 5.84516129 | I44: XXXXX | J44: XX | L44: XXXX | M44: =AVERAGE(M6:M15,M18:M27,M30:M40) -> 1007.26129 | N44: =AVERAGE(N6:N15,N18:N27,N30:N40) -> -2.448387097 | O44: =AVERAGE(O6:O15,O18:O27,O30:O40) -> 6.903225806 | P44: =AVERAGE(P17,P29,P42) -> 0.6939393939 | Q44: X | R44: XX | S44: XX | T44: XX | U44: XX | V44: =AVERAGE(V17,V29,V42) -> 32.36666667
B46: Norm | C46: % v N.- | D46: Abw. | E46: Zahl der Tage | L46: Niederschlag mm | P46: Sonnensch.-dauer Std
B47: wert | C47: wert | D47: K | E47: Max.d.Lufttemp.°C | L47: >/= 0,1 | O47: =SUM(AE7:AE9) -> 14 | P47: ohne Sonne | V47: =SUM(AA17:AA19) -> 10
A48: TTT | B48: 4.5 | C48: XXXX | D48: =SUM(B44-B48) -> -2.619354839 | E48: Tropentag/Hitzetag | I48: =SUM(AA7:AA9) -> 0 | L48: >/= 1,0 | O48: =SUM(AF7:AF9) -> 8 | P48: 0,1 bis 0,9 | V48: =SUM(AB17:AB19) -> 4
A49: RRR | B49: 45 | C49: =SUM(I43*100/B49) -> 76.22222222 | D49: XXXX | E49: Sommertag | I49: =SUM(AB7:AB9) -> 0 | L49: >/= 3,0 | O49: =SUM(AG7:AG9) -> 3 | P49: >/= 10,0 | V49: =SUM(AC17:AC19) -> 0
A50: sss | B50: 113 | C50: =SUM(L43*100/B50) -> 73.36283186 | D50: XXXX | E50: Eistag | I50: =SUM(AC7:AC9) -> 6 | L50: >/=10,0 | O50: =SUM(AH7:AH9) -> 1 | P50: Schneedecke cm
A51: astr. | D51: XXXX | E51: Polartag | I51: 0 | L51: >/= 20,0 | O51: =SUM(AI7:AI9) -> 0 | P51: >/= 1 | V51: =SUM(AE17:AE19) -> 5
A52: mgl. | B52: 366 | C52: =SUM(L43*100/B52) -> 22.65027322 | D52: XXXX | E52: Min.d.Lufttemp.°C | L52: Rel. Luftfeuchte 14 Uhr | P52: >/= 3 | V52: =SUM(AF17:AF19) -> 4
A53: sss | D53: XXXX | E53: Frosttag | I53: =SUM(AA12:AA14) -> 19 | L53: >/=70% | O53: =SUM(AE12:AE14) -> 9 | P53: >/= 10 | V53: =SUM(AG17:AG19) -> 0
E54: Tropennacht | I54: 0 | L54: </=40% | O54: =SUM(AG12:AG14) -> 3
E57: Unter "Tage mit" sind die Angaben Bft 6 & Bft 8 nicht 10 min. - Mittel sonder 2,5 s - Werte.
E58: Wenn ein Wert auch mit einem 10 min. - Wert erreicht wird, erfolgt eine rote Markierung.
E59: Dies gilt rückwirkend bis November 2012.
F113: Tage mit Bft 6 /8 eigentlich in 10 min. - Mittel

Sheet Sichtst.
E1: Sichtweitenstatistik
B5: Wetterstation: Köttewitz | F5: Monat: | G5: März | K5: Jahr: | L5: 2018
A7: Dat. | B7: Nebeldauer | C7: Nebel | D7: Dunst | E7: Sicht | F7: Sicht | G7: Sicht | H7: Sicht
B8: in St. u. Min. | E8: mittel | F8: normal | G8: gut | H8: sehr gut
A9: 01. | E9: 1 | F9: 1 | N9: =IF(ISNUMBER(B9),B9*24," ") ->  | O9: =IF(ISNUMBER(N9),IF(N9<1,1," ")," ") ->  | P9: =IF(ISNUMBER(N9),IF(N9<8,2," ")," ") ->  | Q9: =IF(ISNUMBER(N9),IF(N9<24,3," ")," ") ->  | R9: =MIN(O9:Q9) -> 0
A10: 02. | E10: 1 | F10: 1 | R10: 0
A11: 03. | E11: 1 | F11: 1 | R11: 0
A12: 04. | E12: 1 | F12: 1 | R12: 0
A13: 05. | E13: 1 | F13: 1 | R13: 0
A14: 06. | D14: 1 | E14: 1 | R14: 0
A15: 07. | D15: 1 | E15: 1 | F15: 1 | R15: 0
A16: 08. | F16: 1 | G16: 1 | R16: 0
A17: 09. | F17: 1 | G17: 1 | R17: 0
A18: 10. | E18: 1 | F18: 1 | G18: 1 | R18: 0
A19: 11. | F19: 1 | R19: 0
A20: 12. | D20: 1 | E20: 1 | F20: 1 | R20: 0
A21: 13. | F21: 1 | G21: 1 | H21: 1 | R21: 0
A22: 14. | E22: 1 | F22: 1 | R22: 0
A23: 15. | E23: 1 | F23: 1 | R23: 0
A24: 16. | D24: 1 | R24: 0
A25: 17. | D25: 1 | E25: 1 | F25: 1 | R25: 0
A26: 18. | F26: 1 | R26: 0
A27: 19. | F27: 1 | R27: 0
A28: 20. | F28: 1 | R28: 0
A29: 21. | F29: 1 | R29: 0
A30: 22. | D30: 1 | E30: 1 | F30: 1 | R30: 0
A31: 23. | D31: 1 | E31: 1 | F31: 1 | R31: 0
A32: 24. | D32: 1 | E32: 1 | F32: 1 | R32: 0
A33: 25. | E33: 1 | F33: 1 | R33: 0
A34: 26. | D34: 1 | E34: 1 | R34: 0
A35: 27. | D35: 1 | E35: 1 | F35: 1
A36: 28. | D36: 1 | E36: 1 | F36: 1
A37: 29. | D37: 1 | E37: 1 | F37: 1
A38: 30. | F38: 1 | R38: 0
A39: 31. | E39: 1 | F39: 1 | R39: 0
A40: Su. | B40: =SUM(B9:B39) -> 00:00:00 | C40: 0 | D40: 12 | E40: 21 | F40: 28 | G40: 4 | H40: 1
B42: Anzahl der Nebeltage : | E42: =SUM(C40) -> 0
B43: Anzahl der Tage Sicht >= 50 km : | E43: =SUM(G40) -> 4

Sheet Monatsdiagramm
A1: Klimadiagramm | C1: Wetterstation Köttewitz | I1: (214 m ü. NHN)
A3: März 2018
C5: aktuell | D5: langj. Mittel | E5: Abw. vom lj. Mittel
B6: höchste Temperatur (°C): | C6: =MAX('Daten für Diagr.'!C2:C32) -> 17.2 | D6: am | E6: 2018-03-11
B7: mittlere Temperatur (°C): | C7: ='Daten für Diagr.'!B33 -> 1.880645161 | D7: =Kurztabelle!B48 -> 4.5 | E7: =C7-D7 -> -2.619354839 | F7: K
B8: tiefste Temperatur (°C): | C8: =MIN('Daten für Diagr.'!D2:D32) -> -14.2 | D8: am | E8: 2018-03-01
B9: Niederschlagshöhe (mm): | C9: =Kurztabelle!I43 -> 34.3 | D9: =Kurztabelle!B49 -> 45 | E9: =100/D9*C9 -> 76.22222222 | F9: %
B10: Sonnenscheindauer (Std.)*: | C10: =Kurztabelle!L43 -> 82.9 | D10: =Kurztabelle!B50 -> 113 | E10: =100/D10*C10 -> 73.36283186 | F10: %
A66: *Die Wetterstation kann, durch geographische Hindernisse, nicht die maximal mögliche Sonnenscheindauer aufzeichnen. Es gilt ein Übergangsprozentsatz von:
A67: Dez 30 %; Okt/Nov & Jan/Feb 40 %; Mär & Sep 65 %; Apr & Aug 80 %; Mai - Jul 90 %. Durch Baumfällarbeiten seit Orkan Herwart (Okt 2017) Okt & Feb 50 %.
A68: Diese Werte entsprechend annähernd 100 % (Normalwert Köttewitz). Nach 10 Jahren erfolgt die Umstellung des Prozentsatzes nach der örtlichen Aufzeichnung.

Sheet Daten für Diagr.
B1: Td | C1: Tmax | D1: Tmin | E1: RR | F1: Schnee | G1: Sonne | H1: Luftdr. | I1: MWT | J1: GWL | K1: Name | L1: Sonstiges
A2: 2018-03-01 | B2: -8.7 | C2: -2.1 | D2: -14.2 | G2: 6.7 | H2: 1017.8 | I2: 1.5 | J2: (HNFz) | K2: (H Hartmut)
A3: 2018-03-02 | B3: -6.9 | C3: -1.3 | D3: -12.8 | G3: 1.5 | H3: 1005.5 | I3: 1.65
A4: 2018-03-03 | B4: -7.2 | C4: -1.2 | D4: -12.4 | G4: 1.4 | H4: 1004.8 | I4: 1.8 | J4: TrW | K4: T Ulrike
A5: 2018-03-04 | B5: -2.4 | C5: 4.4 | D5: -10.2 | G5: 3.7 | H5: 1005 | I5: 1.95
A6: 2018-03-05 | B6: 0.3 | C6: 3.9 | D6: -2 | H6: 1000.9 | I6: 2.15
A7: 2018-03-06 | B7: 0.5 | C7: 3 | D7: -1.9 | E7: 6.6 | F7: 0 | H7: 994.2 | I7: 2.35 | J7: TrM | K7: T Wiebke
A8: 2018-03-07 | B8: 2.8 | C8: 7.1 | D8: -0.9 | E8: 1.3 | F8: 3 | G8: 0.2 | H8: 995 | I8: 2.55
A9: 2018-03-08 | B9: 6.4 | C9: 10.1 | D9: 3 | F9: 0 | G9: 2.7 | H9: 1003.5 | I9: 2.75 | J9: Ws | K9: T Xenia
A10: 2018-03-09 | B10: 5.6 | C10: 9.9 | D10: 2.9 | E10: 0.8 | G10: 7 | H10: 1008 | I10: 2.95
A11: 2018-03-10 | B11: 8 | C11: 14.9 | D11: 1.9 | G11: 1.1 | H11: 1006.5 | I11: 3.15 | J11: TrW | K11: T Yuliya
A12: 2018-03-11 | B12: 10.9 | C12: 17.2 | D12: 6.8 | G12: 3.4 | H12: 1001 | I12: 3.35
A13: 2018-03-12 | B13: 8.4 | C13: 10.1 | D13: 6.2 | E13: 11.7 | H13: 993.3 | I13: 3.55 | J13: Ws
A14: 2018-03-13 | B14: 9.2 | C14: 12.2 | D14: 6.8 | E14: 1.1 | G14: 0.2 | H14: 1001 | I14: 3.75
A15: 2018-03-14 | B15: 3.6 | C15: 6.8 | D15: 1.8 | E15: 0.8 | H15: 1011 | I15: 3.95 | J15: U
A16: 2018-03-15 | B16: 4.3 | C16: 10.1 | D16: -1.6 | E16: 0.3 | G16: 3.5 | H16: 1007.6 | I16: 4.15 | J16: HNFz | K16: H Irenäus
A17: 2018-03-16 | B17: 1.1 | C17: 3.8 | D17: -2.8 | E17: 5.8 | F17: 0 | H17: 1004.7 | I17: 4.35
A18: 2018-03-17 | B18: -4.9 | C18: -2.8 | D18: -5.8 | E18: 0.4 | F18: 6 | H18: 1010.5 | I18: 4.55
A19: 2018-03-18 | B19: -5.3 | C19: -2.7 | D19: -8.1 | F19: 5 | G19: 9 | H19: 1014.2 | I19: 4.75
A20: 2018-03-19 | B20: -4.4 | C20: -0.2 | D20: -10.3 | F20: 5 | G20: 8.9 | H20: 1014.3 | I20: 4.9 | J20: NEa
A21: 2018-03-20 | B21: -2.4 | C21: 3 | D21: -8.3 | E21: 1.4 | F21: 0 | G21: 3.5 | H21: 1015.8 | I21: 5.05
A22: 2018-03-21 | B22: -0.7 | C22: 3.5 | D22: -5.1 | F22: 2 | G22: 5.3 | H22: 1026.9 | I22: 5.2 | J22: BM
A23: 2018-03-22 | B23: 1.4 | C23: 4 | D23: -2.4 | E23: 1.2 | F23: 0 | H23: 1016.4 | I23: 5.35
A24: 2018-03-23 | B24: 2.6 | C24: 4.1 | D24: 1.7 | H24: 1008.1 | I24: 5.5
A25: 2018-03-24 | B25: 3.2 | C25: 8.9 | D25: -2.2 | G25: 4.7 | H25: 1006.1 | I25: 5.65 | J25: Ww | K25: H Jost
A26: 2018-03-25 | B26: 2.8 | C26: 8 | D26: -2.3 | G26: 8.3 | H26: 1008.8 | I26: 5.8
A27: 2018-03-26 | B27: 3.6 | C27: 8.7 | D27: -0.5 | E27: 0.1 | H27: 1013.1 | I27: 5.95 | K27: T Carola
A28: 2018-03-27 | B28: 3.7 | C28: 7.8 | D28: 1.3 | G28: 3.2 | H28: 1014.9 | I28: 6.1 | J28: Wz | K28: T Elisabeth
A29: 2018-03-28 | B29: 4.9 | C29: 8.3 | D29: 1.5 | E29: 1.9 | H29: 1005.5 | I29: 6.25 | J29: HNz
A30: 2018-03-29 | B30: 6.2 | C30: 9.5 | D30: 4.8 | G30: 0.3 | H30: 1004.8 | I30: 6.4
A31: 2018-03-30 | B31: 5.9 | C31: 13.2 | D31: -1.2 | H31: 1007.5 | I31: 6.55 | J31: HNFz
A32: 2018-03-31 | B32: 5.8 | C32: 9.9 | D32: 2.3 | E32: 0.9 | G32: 0.1 | H32: 998.4 | I32: 6.7 | J32: TM | K32: T Franziska
A33: Durchschnitt | B33: =AVERAGE(B2:B32) -> 1.880645161 | C33: =AVERAGE(C2:C32) -> 6.196774194 | D33: =AVERAGE(D2:D32) -> -2.064516129 | E33: - | G33: =AVERAGE(G2:G32) -> 3.735 | H33: =AVERAGE(H2:H32) -> 1007.26129 | I33: =AVERAGE(I2:I32) -> 4.212903226
A34: Mittel | B34: 4.5 | E34: 45 | F34: - | G34: 113 | H34: 1016.3
A90: 1
A91: 2
A92: 3
A93: 4
A94: 5
A95: 6
A96: 7
A97: 8
A98: 9
A99: 10
A100: 11
A101: 12
A102: 13
A103: 14
A104: 15
A105: 16
A106: 17
A107: 18
A108: 19
A109: 20
A110: 21
A111: 22
A112: 23
A113: 24
A114: 25
A115: 26
A116: 27
A117: 28
A118: 29
A119: 30
A120: 31

Sheet Erdboden
F1: Erdbodenstatistik
B3: Wetterstation: | C3: Köttewitz | E3: Monat: | F3: März | J3: Jahr: | K3: 2018
A5: Dat. | B5: Temperatur | C5: Temperatur | D5: Temperatur | E5: Temperatur | F5: NN | G5: 0 °C - Grenze | H5: 5 °C - Grenze | I5: 10 °C - Grenze | J5: 15 °C - Grenze | K5: 20 °C - Grenze
B6: 5 cm | C6: -10 cm | D6: - 20 cm | E6: - 35 cm
A7: 01. | B7: -15,0 °C/1,1 °C/-9,4 °C | C7: -4,4 °C/-2,2 °C/-2,8 °C | D7: -2,8 °C/-1,7 °C/-1,7 °C | E7: 0,0 °C/0,0 °C/0,0 °C | F7: h | G7: 35 cm
A8: 02. | B8: -13,3 °C/1,7 °C/-6,1 °C | C8: -4,4 °C/-1,7 °C/-1,7 °C | D8: -2,8 °C/-1,7 °C/-1,1 °C | E8: 0,0 °C/0,0 °C/0,0 °C | F8: n | G8: 35 cm
A9: 03. | B9: -13,9 °C/2,2 °C/-8,9 °C | C9: -3,9 °C/-1,7 °C/-2,2 °C | D9: -2,2 °C/-1,7 °C/-1,7 °C | E9: 0,0 °C/0,0 °C/0,0 °C | F9: n | G9: 35 cm
A10: 04. | B10: -6,1 °C/7,2 °C/-2,8 °C | C10: -3,3 °C/-0,6 °C/-1,1 °C | D10: -2,2 °C/-1,1 °C/-1,1 °C | E10: 0,0 °C/0,0 °C/0,0 °C | F10: n | G10: 35 cm
A11: 05. | B11: -1,7 °C/6,7 °C/-2,2 °C | C11: -1,1 °C/-0,6 °C/-0,6 °C | D11: -1,1 °C/-0,6 °C/-0,6 °C | E11: 0,0 °C/0,0 °C/0,0 °C | F11: t | G11: 35 cm
A12: 06. | B12: -0,6 °C/2,2 °C/0,0 °C | C12: -0,6 °C/-0,6 °C/0,0 °C | D12: -0,6 °C/-0,6 °C/-0,6 °C | E12: 0,0 °C/0,0 °C/0,0 °C | F12: t | G12: < 4; 35 >
A13: 07. | B13: -0,6 °C/4,4 °C/3,3 °C | C13: 0,0 °C/0,0 °C/0,0 °C | D13: -0,6 °C/-0,6 °C/-0,6 °C | E13: 0,0 °C/-0,6 °C/0,0 °C | F13: t | G13: < 10; 40 >
A14: 08. | B14: 3,3 °C/10,6 °C/3,9 °C | C14: 0,0 °C/0,0 °C/0,0 °C | D14: 0,0 °C/0,0 °C/0,0 °C | E14: 0,0 °C/0,0 °C/0,0 °C | F14: n | G14: < 10; 35 >
A15: 09. | B15: 1,7 °C/12,2 °C/1,1 °C | C15: 0,0 °C/0,6 °C/0,0 °C | D15: 0,0 °C/0,0 °C/0,0 °C | E15: 0,0 °C/0,0 °C/0,0 °C | F15: n | G15: < 20; 35 >
A16: 10. | B16: 3,9 °C/18,3 °C/6,7 °C | C16: 0,0 °C/1,7 °C/1,1 °C | D16: 0,0 °C/0,0 °C/0,0 °C | E16: 0,0 °C/0,0 °C/0,0 °C | F16: t | G16: < 20; 35 >
A17: 11. | B17: 5,6 °C/20,0 °C/7,2 °C | C17: 1,1 °C/5,0 °C/2,8 °C | D17: 0,0 °C/1,7 °C/1,1 °C | E17: 0,0 °C/0,0 °C/0,0 °C | F17: t | G17: < 35 cm > | H17: 4 cm
A18: 12. | B18: 5,0 °C/10,0 °C/7,2 °C | C18: 1,7 °C/2,8 °C/3,3 °C | D18: 0,6 °C/1,7 °C/2,2 °C | E18: 0,0 °C/0,6 °C/0,6 °C | F18: t | G18: > 50 cm | H18: 3 cm
A19: 13. | B19: 6,7 °C/12,2 °C/6,7 °C | C19: 2,2 °C/5,0 °C/3,9 °C | D19: 1,1 °C/2,8 °C/3,3 °C | E19: 0,6 °C/1,1 °C/1,7 °C | F19: t | G19: > 50 cm | H19: 6 cm
A20: 14. | B20: 2,8 °C/5,6 °C/2,2 °C | C20: 2,8 °C/4,4 °C/3,9 °C | D20: 2,8 °C/3,3 °C/3,9 °C | E20: 2,2 °C/2,2 °C/2,8 °C | F20: t | G20: > 50 cm
A21: 15. | B21: -2,2 °C/11,1 °C/2,2 °C | C21: 1,7 °C/5,6 °C/4,4 °C | D21: 2,8 °C/3,9 °C/3,9 °C | E21: 2,8 °C/2,8 °C/3,3 °C | F21: n | G21: > 50 cm
A22: 16. | B22: 2,8 °C/1,1 °C/-1,7 °C | C22: 3,3 °C/3,3 °C/2,2 °C | D22: 3,3 °C/3,3 °C/2,8 °C | E22: 3,3 °C/3,3 °C/3,3 °C | F22: n | G22: > 50 cm
A23: 17. | B23: -5,0 °C/-3,3 °C/-5,0 °C | C23: 1,7 °C/1,7 °C/1,1 °C | D23: 2,2 °C/2,2 °C/1,7 °C | E23: 2,8 °C/2,8 °C/2,8 °C | F23: t | G23: 7 cm
A24: 18. | B24: -7,8 °C/-0,6 °C/-5,6 °C | C24: 0,6 °C/1,1 °C/0,6 °C | D24: 1,7 °C/1,7 °C/1,1 °C | E24: 2,8 °C/2,2 °C/2,2 °C | F24: t | G24: 8 cm
A25: 19. | B25: -10,0 °C/5,0 °C/-3,9 °C | C25: 0,0 °C/1,1 °C/0,6 °C | D25: 1,1 °C/1,1 °C/1,1 °C | E25: 2,2 °C/2,2 °C/2,2 °C | F25: n | G25: 8 cm
A26: 20. | B26: -7,8 °C/5,6 °C/-1,1 °C | C26: 0,0 °C/1,1 °C/0,6 °C | D26: 0,6 °C/1,1 °C/1,1 °C | E26: 1,7 °C/1,7 °C/1,7 °C | F26: n | G26: 5 cm
A27: 21. | B27: -6,7 °C/4,4 °C/-2,8 °C | C27: 0,6 °C/1,1 °C/1,1 °C | D27: 0,6 °C/1,7 °C/1,1 °C | E27: 1,7 °C/1,7 °C/1,7 °C | F27: n | G27: 5 cm
A28: 22. | B28: 1,1 °C/3,1 °C/1,1 °C | C28: 0,6 °C/1,1 °C/1,7 °C | D28: 1,1 °C/1,1 °C/1,7 °C | E28: 1,7 °C/1,7 °C/1,7 °C | F28: t | G28: > 50 cm
A29: 23. | B29: 1,7 °C/6,1 °C/-0,6 °C | C29: 1,7 °C/3,3 °C/2,8 °C | D29: 1,7 °C/2,8 °C/2,8 °C | E29: 1,7 °C/2,2 °C/2,2 °C | F29: t | G29: > 50 cm
A30: 24. | B30: -2,8 °C/10,6 °C/-1,7 °C | C30: 1,1 °C/5,0 °C/3,9 °C | D30: 1,7 °C/3,9 °C/3,9 °C | E30: 2,2 °C/2,8 °C/3,3 °C | F30: n | G30: > 50 cm
A31: 25. | B31: 0,0 °C/13,3 °C/-2,2 °C | C31: 1,7 °C/5,6 °C/3,9 °C | D31: 2,2 °C/3,9 °C/3,9 °C | E31: 2,8 °C/2,8 °C/3,3 °C | F31: n | G31: > 50 cm
A32: 26. | B32: 1,1 °C/7,8 °C/3,3 °C | C32: 2,2 °C/5,0 °C/4,4 °C | D32: 2,8 °C/3,9 °C/4,4 °C | E32: 3,3 °C/3,3 °C/3,9 °C | F32: t | G32: > 50 cm
A33: 27. | B33: 1,7 °C/13,9 °C/1,1 °C | C33: 3,3 °C/6,7 °C/5,0 °C | D33: 3,9 °C/5,6 °C/5,0 °C | E33: 3,9 °C/3,9 °C/4,4 °C | F33: n | G33: > 50 cm
A34: 28. | B34: 2,8 °C/8,3 °C/5,0 °C | C34: 3,3 °C/5,6 °C/5,6 °C | D34: 3,9 °C/5,0 °C/5,0 °C | E34: 4,4 °C/4,4 °C/4,4 °C | F34: t | G34: > 50 cm
A35: 29. | B35: 4,4 °C/10,6 °C/1,7 °C | C35: 5,0 °C/7,2 °C/5,6 °C | D35: 5,0 °C/6,1 °C/5,6 °C | E35: 4,4 °C/4,4 °C/5,0 °C | F35: t | G35: > 50 cm
A36: 30. | B36: 1,1 °C/16,7 °C/3,3 °C | C36: 2,8 °C/7,8 °C/6,1 °C | D36: 3,3 °C/6,1 °C/6,1 °C | E36: 4,4 °C/4,4 °C/5,0 °C | F36: n | G36: > 50 cm | H36: 29 cm
A37: 31. | B37: 5,6 °C/6,7 °C/3,9 °C | C37: 5,0 °C/7,2 °C/6,1 °C | D37: 5,0 °C/6,1 °C/6,1 °C | E37: 5,0 °C/5,0 °C/5,6 °C | F37: t | G37: > 50 cm | H37: > 50 cm
B39: Werte von 7 Uhr/14 Uhr/21 Uhr MEZ
B41: Mit Gelb markiert ist der Temperaturbereich des Erdbodens.
